lending/lending_fUSD_20250808
["ID","MTS","AMOUNT","RATE_DAILY","PERIOD"]
[377949837,1754626242238,-714.82,0.00018887,2]
[377949839,1754626242248,-400.0,0.00018887,2]
[377949840,1754626242258,-559.3,0.00018887,2]
[377949842,1754626242268,-461.32,0.00018887,2]
[377949844,1754626242278,-400.0,0.00018887,2]
[377949846,1754626242288,-400.0,0.00018887,2]
[377949848,1754626242297,-182.09107513,0.00018887,2]
[377949849,1754626242307,-667.25,0.00018887,2]
[377949851,1754626242317,-400.0,0.00018887,2]
[377949853,1754626242327,-400.0,0.00018887,2]
[377949855,1754626242338,-835.61,0.00018887,2]
[377949857,1754626242347,-400.0,0.00018887,2]
[377949859,1754626242357,-646.3,0.00018887,2]
[377949860,1754626242368,-400.0,0.00018887,2]
[377949862,1754626242378,-400.0,0.00018887,2]
[377949864,1754626242388,-447.17823523,0.00018887,2]
[377949866,1754626242398,-400.0,0.00018887,2]
[377949868,1754626242407,-561.42,0.00018887,2]
[377949870,1754626242418,-508.98,0.00018887,2]
[377949871,1754626242428,-400.0,0.00018887,2]
[377949873,1754626242437,-400.0,0.00018887,2]
[377949875,1754626242448,-490.6,0.00018887,2]
[377949877,1754626242458,-400.0,0.00018887,2]
[377949879,1754626242468,-400.0,0.00018887,2]
[377949881,1754626242478,-709.98,0.00018887,2]
[377949883,1754626242488,-777.73,0.00018887,2]
[377949885,1754626242498,-400.0,0.00018887,2]
[377949887,1754626242508,-400.0,0.00018887,2]
[377949888,1754626242517,-520.41,0.00018887,2]
[377949890,1754626242527,-517.16,0.00018887,2]
[377949892,1754626242537,-400.0,0.00018887,2]
[377949894,1754626242547,-400.0,0.00018887,2]
[377949895,1754626242557,-774.37,0.00018887,2]
[377949897,1754626242567,-745.25,0.00018887,2]
[377949899,1754626242578,-680.99,0.00018887,2]
[377949901,1754626242588,-400.0,0.00018887,2]
[377949903,1754626242598,-400.0,0.00018887,2]
[377949904,1754626242608,-400.0,0.00018887,2]
[377949906,1754626242618,-400.0,0.00018887,2]
[377949908,1754626242628,-400.0,0.00018887,2]
[377949910,1754626242638,-400.0,0.00018887,2]
[377949912,1754626242648,-400.0,0.00018887,2]
[377949914,1754626242658,-400.0,0.00018887,2]
[377949916,1754626242668,-400.0,0.00018887,2]
[377949918,1754626242678,-654.32,0.00018887,2]
[377949920,1754626242688,-475.66,0.00018887,2]
[377949921,1754626242698,-400.0,0.00018887,2]
[377949923,1754626242708,-400.0,0.00018887,2]
[377949925,1754626242718,-661.22,0.00018887,2]
[377949927,1754626242728,-400.0,0.00018887,2]
[377949929,1754626242738,-400.0,0.00018887,2]
[377949931,1754626242748,-461.62,0.00018887,2]
[377949932,1754626242757,-546.3,0.00018887,2]
[377949934,1754626242768,-792.57,0.00018887,2]
[377949937,1754626242778,-493.31,0.00018887,2]
[377949939,1754626242792,-400.0,0.00018887,2]
[377949940,1754626242802,-400.0,0.00018887,2]
[377949942,1754626242811,-580.1,0.00018887,2]
[377949944,1754626242821,-400.0,0.00018887,2]
[377949946,1754626242832,-400.0,0.00018887,2]
[377949948,1754626242843,-431.68,0.00018887,2]
[377949950,1754626242853,-762.35,0.00018887,2]
[377949952,1754626242863,-400.0,0.00018887,2]
[377949954,1754626242872,-404.32,0.00018887,2]
[377949956,1754626242882,-400.0,0.00018887,2]
[377949957,1754626242892,-400.0,0.00018887,2]
[377949959,1754626242904,-409.42,0.00018887,2]
[377949961,1754626242915,-424.34225566,0.00018887,2]
[377949963,1754626242925,-400.0,0.00018887,2]
[377949965,1754626242935,-400.0,0.00018887,2]
[377949967,1754626242946,-881.9,0.00018887,2]
[377949969,1754626242956,-262.16893435,0.00018887,2]
[377949971,1754626242965,-400.0,0.00018887,2]
[377949973,1754626242975,-402.69,0.00018887,2]
[377949975,1754626242986,-708.23,0.00018887,2]
[377949977,1754626242997,-400.0,0.00018887,2]
[377949979,1754626243007,-1153.5,0.00018887,2]
[377949980,1754626243017,-457.97,0.00018887,2]
[377949982,1754626243026,-400.0,0.00018887,2]
[377949984,1754626243036,-427.35,0.00018887,2]
[377949986,1754626243046,-400.0,0.00018887,2]
[377949988,1754626243055,-400.0,0.00018887,2]
[377949990,1754626243065,-400.0,0.00018887,2]
[377949992,1754626243075,-753.04,0.00018887,2]
[377949994,1754626243085,-1025.45,0.00018887,2]
[377949995,1754626243094,-400.0,0.00018887,2]
[377949997,1754626243104,-400.0,0.00018887,2]
[377949999,1754626243114,-400.0,0.00018887,2]
[377950001,1754626243123,-400.0,0.00018887,2]
[377950003,1754626243132,-400.0,0.00018887,2]
[377950005,1754626243142,-639.19,0.00018887,2]
[377950007,1754626243152,-400.0,0.00018887,2]
[377950009,1754626243162,-400.0,0.00018887,2]
[377950011,1754626243173,-400.0,0.00018887,2]
[377950012,1754626243183,-400.0,0.00018887,2]
[377950014,1754626243193,-516.92,0.00018887,2]
[377950016,1754626243206,-595.18,0.00018887,2]
[377950018,1754626243216,-1035.95,0.00018887,2]
[377950020,1754626243226,-400.0,0.00018887,2]
[377950022,1754626243236,-779.19,0.00018887,2]
[377950024,1754626243245,-267.44,0.00018887,2]
[377950026,1754626243255,-400.0,0.00018887,2]
[377950028,1754626243265,-400.0,0.00018887,2]
[377950030,1754626243275,-400.0,0.00018887,2]
[377950032,1754626243285,-400.0,0.00018887,2]
[377950033,1754626243295,-1327.47,0.00018887,2]
[377950035,1754626243304,-400.0,0.00018887,2]
[377950037,1754626243315,-400.0,0.00018887,2]
[377950039,1754626243325,-984.12,0.00018887,2]
[377950041,1754626243338,-400.0,0.00018887,2]
[377950043,1754626243348,-667.27,0.00018887,2]
[377950045,1754626243358,-400.0,0.00018887,2]
[377950047,1754626243368,-400.0,0.00018887,2]
[377950049,1754626243378,-656.52,0.00018887,2]
[377950051,1754626243387,-413.21,0.00018887,2]
[377950053,1754626243397,-400.0,0.00018887,2]
[377950055,1754626243407,-400.0,0.00018887,2]
[377950057,1754626243418,-611.55,0.00018887,2]
[377950059,1754626243428,-619.46,0.00018887,2]
[377950061,1754626243438,-1041.04,0.00018887,2]
[377950063,1754626243448,-927.35,0.00018887,2]
[377950065,1754626243457,-400.0,0.00018887,2]
[377950067,1754626243468,-642.29,0.00018887,2]
[377950068,1754626243477,-450.11,0.00018887,2]
[377950070,1754626243487,-400.0,0.00018887,2]
[377950072,1754626243497,-400.0,0.00018887,2]
[377950074,1754626243507,-400.0,0.00018887,2]
[377950076,1754626243516,-400.0,0.00018887,2]
[377950078,1754626243526,-400.0,0.00018887,2]
[377950080,1754626243535,-637.14,0.00018887,2]
[377950082,1754626243545,-400.0,0.00018887,2]
[377950083,1754626243555,-400.0,0.00018887,2]
[377950086,1754626243564,-400.0,0.00018887,2]
[377950089,1754626243575,-400.0,0.00018887,2]
[377950091,1754626243585,-493.46,0.00018887,2]
[377950093,1754626243595,-400.0,0.00018887,2]
[377950095,1754626243605,-400.0,0.00018887,2]
[377950097,1754626243615,-429.69,0.00018887,2]
[377950099,1754626243624,-421.71,0.00018887,2]
[377950101,1754626243634,-517.66,0.00018887,2]
[377950103,1754626243643,-400.0,0.00018887,2]
[377950104,1754626243653,-400.0,0.00018887,2]
[377950106,1754626243663,-465.15,0.00018887,2]
[377950108,1754626243673,-400.0,0.00018887,2]
[377950110,1754626243682,-678.98,0.00018887,2]
[377950112,1754626243691,-400.0,0.00018887,2]
[377950114,1754626243701,-1384.81,0.00018887,2]
[377950116,1754626243711,-996.67,0.00018887,2]
[377950118,1754626243720,-571.51,0.00018887,2]
[377950120,1754626243730,-400.0,0.00018887,2]
[377950122,1754626243740,-500.9537955,0.00018887,2]
[377950124,1754626243749,-400.0,0.00018887,2]
[377950125,1754626243759,-400.0,0.00018887,2]
[377950126,1754626243768,-722.09,0.00018887,2]
[377950127,1754626243777,-400.0,0.00018887,2]
[377950128,1754626243787,-400.0,0.00018887,2]
[377950129,1754626243796,-593.69,0.00018887,2]
[377950130,1754626243807,-400.0,0.00018887,2]
[377950131,1754626243816,-1728.68,0.00018887,2]
[377950132,1754626243826,-400.0,0.00018887,2]
[377950133,1754626243835,-400.0,0.00018887,2]
[377950134,1754626243844,-715.63,0.00018887,2]
[377950135,1754626243854,-400.0,0.00018887,2]
[377950136,1754626243864,-400.0,0.00018887,2]
[377950137,1754626243875,-400.0,0.00018887,2]
[377950138,1754626243885,-400.0,0.00018887,2]
[377950139,1754626243895,-400.0,0.00018887,2]
[377950140,1754626243911,-641.91,0.00018887,2]
[377950141,1754626243921,-891.24,0.00018887,2]
[377950142,1754626243930,-400.0,0.00018887,2]
[377950144,1754626243940,-406.1,0.00018887,2]
[377950146,1754626243950,-400.0,0.00018887,2]
[377950148,1754626243960,-934.12,0.00018887,2]
[377950150,1754626243970,-400.0,0.00018887,2]
[377950152,1754626243980,-934.46,0.00018887,2]
[377950154,1754626243990,-400.0,0.00018887,2]
[377950156,1754626243999,-400.0,0.00018887,2]
[377950158,1754626244010,-670.4,0.00018887,2]
[377950160,1754626244020,-674.87,0.00018887,2]
[377950162,1754626244029,-1307.54,0.00018887,2]
[377950164,1754626244039,-400.0,0.00018887,2]
[377950166,1754626244048,-804.47,0.00018887,2]
[377950168,1754626244058,-400.0,0.00018887,2]
[377950170,1754626244068,-400.0,0.00018887,2]
[377950172,1754626244079,-191.00601567,0.00018887,2]
[377950174,1754626244088,-510.06,0.00018887,2]
[377950176,1754626244099,-937.03,0.00018887,2]
[377950178,1754626244109,-400.0,0.00018887,2]
[377950180,1754626244119,-812.93,0.00018887,2]
[377950183,1754626244129,-400.0,0.00018887,2]
[377950185,1754626244139,-861.49,0.00018887,2]
[377950187,1754626244148,-400.0,0.00018887,2]
[377950189,1754626244158,-552.22,0.00018887,2]
[377950191,1754626244167,-400.0,0.00018887,2]
[377950193,1754626244177,-486.11,0.00018887,2]
[377950195,1754626244187,-1786.72,0.00018887,2]
[377950197,1754626244198,-606.4,0.00018887,2]
[377950199,1754626244208,-810.48,0.00018887,2]
[377950201,1754626244218,-400.0,0.00018887,2]
[377950203,1754626244228,-809.54,0.00018887,2]
[377950205,1754626244237,-911.31,0.00018887,2]
[377950207,1754626244246,-400.0,0.00018887,2]
[377950209,1754626244258,-437.41,0.00018887,2]
[377950211,1754626244268,-992.26,0.00018887,2]
[377950213,1754626244278,-934.15,0.00018887,2]
[377950215,1754626244288,-775.57,0.00018887,2]
[377950217,1754626244297,-400.0,0.00018887,2]
[377950220,1754626244307,-451.59,0.00018887,2]
[377950222,1754626244317,-159.68624649,0.00018887,2]
[377950224,1754626244326,-1104.9,0.00018887,2]
[377950226,1754626244336,-400.0,0.00018887,2]
[377950228,1754626244345,-400.0,0.00018887,2]
[377950230,1754626244355,-400.0,0.00018887,2]
[377950232,1754626244365,-400.0,0.00018887,2]
[377950234,1754626244374,-759.22,0.00018887,2]
[377950236,1754626244384,-703.85,0.00018887,2]
[377950238,1754626244393,-670.41,0.00018887,2]
[377950240,1754626244403,-734.03,0.00018887,2]
[377950242,1754626244413,-618.57,0.00018887,2]
[377950244,1754626244423,-985.82,0.00018887,2]
[377950246,1754626244432,-582.68,0.00018887,2]
[377950248,1754626244442,-549.5,0.00018887,2]
[377950250,1754626244452,-400.0,0.00018887,2]
[377950253,1754626244461,-555.26,0.00018887,2]
[377950255,1754626244471,-1182.91,0.00018887,2]
[377950257,1754626244481,-361.6008372,0.00018887,2]
[377950259,1754626244490,-400.0,0.00018887,2]
[377950261,1754626244500,-443.35,0.00018887,2]
[377950263,1754626244509,-836.26,0.00018887,2]
[377950265,1754626244518,-400.0,0.00018887,2]
[377950267,1754626244528,-489.93,0.00018887,2]
[377950269,1754626244538,-400.0,0.00018887,2]
[377950271,1754626244548,-986.57,0.00018887,2]
[377950273,1754626244557,-400.0,0.00018887,2]
[377950275,1754626244567,-506.93,0.00018887,2]
[377950277,1754626244577,-853.89,0.00018887,2]
[377950279,1754626244587,-400.0,0.00018887,2]
[377950281,1754626244596,-477.62,0.00018887,2]
[377950283,1754626244606,-735.98,0.00018887,2]
[377950285,1754626244617,-400.0,0.00018887,2]
[377950287,1754626244628,-400.0,0.00018887,2]
[377950289,1754626244638,-400.0,0.00018887,2]
[377950292,1754626244648,-400.0,0.00018887,2]
[377950294,1754626244658,-444.13,0.00018887,2]
[377950296,1754626244667,-400.0,0.00018887,2]
[377950298,1754626244677,-400.0,0.00018887,2]
[377950299,1754626244687,-809.01,0.00018887,2]
[377950302,1754626244696,-409.63,0.00018887,2]
[377950304,1754626244706,-420.03,0.00018887,2]
[377950306,1754626244716,-1202.24,0.00018887,2]
[377950308,1754626244726,-1244.59,0.00018887,2]
[377950310,1754626244736,-477.58,0.00018887,2]
[377950312,1754626244747,-667.42,0.00018887,2]
[377950314,1754626244757,-536.9,0.00018887,2]
[377950316,1754626244767,-425.93,0.00018887,2]
[377950318,1754626244778,-400.19,0.00018887,2]
[377950320,1754626244788,-400.0,0.00018887,2]
[377950322,1754626244797,-1284.7,0.00018887,2]
[377950324,1754626244807,-400.0,0.00018887,2]
[377950326,1754626244818,-775.37,0.00018887,2]
[377950328,1754626244828,-400.0,0.00018887,2]
[377950330,1754626244838,-1151.55,0.00018887,2]
[377950332,1754626244847,-400.0,0.00018887,2]
[377950334,1754626244858,-400.0,0.00018887,2]
[377950357,1754626245077,-534.03,0.00018887,2]
[377950359,1754626245087,-1784.76,0.00018887,2]
[377950361,1754626245096,-335.53002335,0.00018887,2]
[377950363,1754626245106,-538.24,0.00018887,2]
[377950365,1754626245115,-400.0,0.00018887,2]
[377950367,1754626245125,-465.41,0.00018887,2]
[377950369,1754626245134,-585.27,0.00018887,2]
[377950371,1754626245144,-400.0,0.00018887,2]
[377950373,1754626245154,-400.0,0.00018887,2]
[377950375,1754626245164,-338.3575478,0.00018887,2]
[377950377,1754626245173,-400.0,0.00018887,2]
[377950379,1754626245183,-727.75,0.00018887,2]
[377950381,1754626245194,-814.66,0.00018887,2]
[377950383,1754626245204,-510.17,0.00018887,2]
[377950385,1754626245214,-576.73,0.00018887,2]
[377950387,1754626245224,-753.91,0.00018887,2]
[377950389,1754626245234,-400.0,0.00018887,2]
[377950391,1754626245243,-400.0,0.00018887,2]
[377950393,1754626245253,-417.82,0.00018887,2]
[377950395,1754626245263,-1488.58,0.00018887,2]
[377950397,1754626245273,-1282.89,0.00018887,2]
[377950399,1754626245284,-400.0,0.00018887,2]
[377950401,1754626245299,-400.0,0.00018887,2]
[377950403,1754626245308,-945.35,0.00018887,2]
[377950405,1754626245318,-400.0,0.00018887,2]
[377950407,1754626245327,-589.45,0.00018887,2]
[377950409,1754626245337,-413.86,0.00018887,2]
[377950411,1754626245346,-400.0,0.00018887,2]
[377950413,1754626245356,-400.0,0.00018887,2]
[377950415,1754626245366,-400.0,0.00018887,2]
[377950417,1754626245376,-1386.59,0.00018887,2]
[377950419,1754626245386,-848.67,0.00018887,2]
[377950421,1754626245395,-400.0,0.00018887,2]
[377950423,1754626245405,-400.0,0.00018887,2]
[377950425,1754626245414,-400.0,0.00018887,2]
[377950427,1754626245424,-400.0,0.00018887,2]
[377950429,1754626245433,-1078.51,0.00018887,2]
[377950431,1754626245442,-1156.26,0.00018887,2]
[377950433,1754626245451,-764.62,0.00018887,2]
[377950435,1754626245460,-400.0,0.00018887,2]
[377950437,1754626245470,-402.40764841,0.00018887,2]
[377950439,1754626245480,-497.98,0.00018887,2]
[377950441,1754626245489,-400.0,0.00018887,2]
[377950443,1754626245498,-400.0,0.00018887,2]
[377950445,1754626245507,-400.0,0.00018887,2]
[377950447,1754626245517,-400.0,0.00018887,2]
[377950449,1754626245527,-853.67,0.00018887,2]
[377950451,1754626245536,-1273.55,0.00018887,2]
[377950453,1754626245546,-400.0,0.00018887,2]
[377950455,1754626245555,-400.0,0.00018887,2]
[377950457,1754626245565,-400.0,0.00018887,2]
[377950459,1754626245574,-1298.91,0.00018887,2]
[377950461,1754626245583,-400.0,0.00018887,2]
[377950463,1754626245594,-467.79,0.00018887,2]
[377950465,1754626245603,-400.0,0.00018887,2]
[377950467,1754626245613,-1383.74,0.00018887,2]
[377950469,1754626245623,-1126.68,0.00018887,2]
[377950471,1754626245632,-911.53,0.00018887,2]
[377950473,1754626245641,-400.0,0.00018887,2]
[377950475,1754626245651,-856.18,0.00018887,2]
[377950477,1754626245661,-874.75,0.00018887,2]
[377950479,1754626245670,-828.88,0.00018887,2]
[377950481,1754626245690,-484.52,0.00018887,2]
[377950483,1754626245699,-400.0,0.00018887,2]
[377950485,1754626245709,-400.0,0.00018887,2]
[377950487,1754626245719,-790.9,0.00018887,2]
[377950489,1754626245729,-612.6,0.00018887,2]
[377950490,1754626245740,-832.99,0.00018887,2]
[377950492,1754626245750,-1042.45,0.00018887,2]
[377950495,1754626245761,-400.0,0.00018887,2]
[377950496,1754626245771,-884.96,0.00018887,2]
[377950499,1754626245782,-400.0,0.00018887,2]
[377950501,1754626245793,-400.0,0.00018887,2]
[377950503,1754626245803,-400.0,0.00018887,2]
[377950505,1754626245814,-796.87,0.00018887,2]
[377950507,1754626245824,-1229.15,0.00018887,2]
[377950509,1754626245834,-400.0,0.00018887,2]
[377950510,1754626245844,-843.04,0.00018887,2]
[377950513,1754626245855,-400.0,0.00018887,2]
[377950515,1754626245864,-994.14,0.00018887,2]
[377950518,1754626245874,-400.0,0.00018887,2]
[377950520,1754626245883,-400.0,0.00018887,2]
[377950523,1754626245893,-1122.85,0.00018887,2]
[377950525,1754626245905,-400.0,0.00018887,2]
[377950527,1754626245915,-400.0,0.00018887,2]
[377950529,1754626245925,-401.13,0.00018887,2]
[377950531,1754626245935,-1000.0,0.00018887,2]
[377950533,1754626245946,-456.89,0.00018887,2]
[377950535,1754626245956,-989.94,0.00018887,2]
[377950537,1754626245965,-400.0,0.00018887,2]
[377950539,1754626245976,-400.0,0.00018887,2]
[377950541,1754626245986,-711.37,0.00018887,2]
[377950543,1754626245997,-1077.94,0.00018887,2]
[377950545,1754626246007,-483.29,0.00018887,2]
[377950547,1754626246016,-737.86,0.00018887,2]
[377950549,1754626246026,-400.0,0.00018887,2]
[377950551,1754626246036,-489.42,0.00018887,2]
[377950553,1754626246045,-1186.63,0.00018887,2]
[377950555,1754626246054,-400.0,0.00018887,2]
[377950557,1754626246064,-840.07,0.00018887,2]
[377950559,1754626246074,-1405.89,0.00018887,2]
[377950561,1754626246083,-868.16,0.00018887,2]
[377950563,1754626246093,-400.0,0.00018887,2]
[377950565,1754626246103,-624.03,0.00018887,2]
[377950567,1754626246112,-583.58,0.00018887,2]
[377950569,1754626246122,-400.0,0.00018887,2]
[377950571,1754626246132,-400.0,0.00018887,2]
[377950573,1754626246142,-400.0,0.00018887,2]
[377950575,1754626246151,-726.17,0.00018887,2]
[377950577,1754626246160,-782.71,0.00018887,2]
[377950579,1754626246172,-427.57705641,0.00018887,2]
[377950581,1754626246181,-1539.75,0.00018887,2]
[377950583,1754626246191,-666.65,0.00018887,2]
[377950585,1754626246201,-1193.78,0.00018887,2]
[377950587,1754626246213,-400.0,0.00018887,2]
[377950589,1754626246222,-871.27,0.00018887,2]
[377950591,1754626246232,-607.63,0.00018887,2]
[377950593,1754626246241,-400.0,0.00018887,2]
[377950595,1754626246251,-400.0,0.00018887,2]
[377950597,1754626246260,-400.0,0.00018887,2]
[377950599,1754626246270,-777.45,0.00018887,2]
[377950601,1754626246279,-400.0,0.00018887,2]
[377950603,1754626246289,-400.0,0.00018887,2]
[377950605,1754626246299,-400.0,0.00018887,2]
[377950607,1754626246308,-400.37,0.00018887,2]
[377950609,1754626246318,-738.12,0.00018887,2]
[377950611,1754626246328,-400.0,0.00018887,2]
[377950613,1754626246337,-427.97,0.00018887,2]
[377950615,1754626246347,-400.0,0.00018887,2]
[377950617,1754626246356,-835.79,0.00018887,2]
[377950619,1754626246365,-1120.32,0.00018887,2]
[377950622,1754626246375,-786.29,0.00018887,2]
[377950624,1754626246385,-693.04,0.00018887,2]
[377950626,1754626246394,-667.91,0.00018887,2]
[377950628,1754626246403,-400.0,0.00018887,2]
[377950630,1754626246412,-1412.23,0.00018887,2]
[377950631,1754626246422,-865.97,0.00018887,2]
[377950633,1754626246438,-400.0,0.00018887,2]
[377950635,1754626246457,-621.57,0.00018887,2]
[377950637,1754626246466,-840.55,0.00018887,2]
[377950640,1754626246477,-400.0,0.00018887,2]
[377950642,1754626246486,-400.0,0.00018887,2]
[377950644,1754626246496,-731.02,0.00018887,2]
[377950646,1754626246505,-737.45,0.00018887,2]
[377950647,1754626246516,-1197.49,0.00018887,2]
[377950649,1754626246526,-400.0,0.00018887,2]
[377950651,1754626246535,-400.0,0.00018887,2]
[377950654,1754626246545,-1569.41,0.00018887,2]
[377950655,1754626246555,-400.0,0.00018887,2]
[377950657,1754626246564,-400.0,0.00018887,2]
[377950659,1754626246573,-407.11,0.00018887,2]
[377950661,1754626246585,-400.0,0.00018887,2]
[377950664,1754626246595,-400.0,0.00018887,2]
[377950665,1754626246604,-400.0,0.00018887,2]
[377950668,1754626246614,-1660.13,0.00018887,2]
[377950669,1754626246623,-1352.21,0.00018887,2]
[377950671,1754626246633,-400.0,0.00018887,2]
[377950673,1754626246642,-722.58,0.00018887,2]
[377950675,1754626246652,-1446.46,0.00018887,2]
[377950677,1754626246661,-446.68,0.00018887,2]
[377950680,1754626246675,-485.66,0.00018887,2]
[377950682,1754626246685,-489.93,0.00018887,2]
[377950684,1754626246694,-400.0,0.00018887,2]
[377950686,1754626246704,-400.0,0.00018887,2]
[377950688,1754626246713,-719.36,0.00018887,2]
[377950690,1754626246723,-400.0,0.00018887,2]
[377950692,1754626246732,-1102.7,0.00018887,2]
[377950694,1754626246741,-400.0,0.00018887,2]
[377950696,1754626246751,-973.19,0.00018887,2]
[377950698,1754626246761,-860.35,0.00018887,2]
[377950700,1754626246770,-772.76,0.00018887,2]
[377950702,1754626246779,-913.18,0.00018887,2]
[377950704,1754626246789,-1201.92,0.00018887,2]
[377950706,1754626246799,-400.0,0.00018887,2]
[377950708,1754626246809,-684.27,0.00018887,2]
[377950710,1754626246818,-730.49,0.00018887,2]
[377950712,1754626246828,-1024.93,0.00018887,2]
[377950714,1754626246838,-400.0,0.00018887,2]
[377950715,1754626246848,-400.0,0.00018887,2]
[377950717,1754626246857,-1036.9,0.00018887,2]
[377950719,1754626246867,-400.0,0.00018887,2]
[377950721,1754626246876,-400.0,0.00018887,2]
[377950723,1754626246886,-400.0,0.00018887,2]
[377950725,1754626246895,-400.0,0.00018887,2]
[377950728,1754626246908,-1040.58,0.00018887,2]
[377950730,1754626246918,-689.6,0.00018887,2]
[377950732,1754626246927,-637.5,0.00018887,2]
[377950734,1754626246937,-400.0,0.00018887,2]
[377950736,1754626246947,-400.0,0.00018887,2]
[377950738,1754626246957,-400.0,0.00018887,2]
[377950740,1754626246967,-429.29,0.00018887,2]
[377950742,1754626246976,-400.0,0.00018887,2]
[377950744,1754626246986,-400.0,0.00018887,2]
[377950746,1754626246996,-400.0,0.00018887,2]
[377950748,1754626247005,-638.34,0.00018887,2]
[377950749,1754626247015,-1201.37,0.00018887,2]
[377950750,1754626247024,-581.07,0.00018887,2]
[377950751,1754626247035,-400.0,0.00018887,2]
[377950752,1754626247044,-400.0,0.00018887,2]
[377950753,1754626247053,-530.5,0.00018887,2]
[377950754,1754626247063,-400.0,0.00018887,2]
[377950755,1754626247073,-699.28,0.00018887,2]
[377950756,1754626247084,-400.0,0.00018887,2]
[377950757,1754626247093,-424.84,0.00018887,2]
[377950758,1754626247102,-620.58,0.00018887,2]
[377950759,1754626247112,-400.0,0.00018887,2]
[377950760,1754626247121,-868.63,0.00018887,2]
[377950761,1754626247130,-458.68,0.00018887,2]
[377950762,1754626247140,-400.0,0.00018887,2]
[377950763,1754626247150,-155.37451088,0.00018887,2]
[377950764,1754626247160,-734.73,0.00018887,2]
[377950765,1754626247170,-1098.06,0.00018887,2]
[377950767,1754626247180,-400.0,0.00018887,2]
[377950769,1754626247190,-400.0,0.00018887,2]
[377950771,1754626247200,-606.6,0.00018887,2]
[377950773,1754626247209,-400.0,0.00018887,2]
[377950775,1754626247219,-713.83,0.00018887,2]
[377950777,1754626247228,-445.36,0.00018887,2]
[377950779,1754626247238,-842.46,0.00018887,2]
[377950781,1754626247248,-400.0,0.00018887,2]
[377950783,1754626247257,-400.0,0.00018887,2]
[377950785,1754626247267,-1069.68,0.00018887,2]
[377950787,1754626247276,-1033.26,0.00018887,2]
[377950789,1754626247285,-400.0,0.00018887,2]
[377950791,1754626247294,-400.0,0.00018887,2]
[377950793,1754626247304,-400.0,0.00018887,2]
[377950795,1754626247314,-888.88,0.00018887,2]
[377950797,1754626247323,-863.53,0.00018887,2]
[377950799,1754626247334,-400.0,0.00018887,2]
[377950801,1754626247343,-400.0,0.00018887,2]
[377950803,1754626247352,-400.0,0.00018887,2]
[377950805,1754626247362,-400.0,0.00018887,2]
[377950807,1754626247371,-820.1,0.00018887,2]
[377950809,1754626247380,-400.0,0.00018887,2]
[377950811,1754626247390,-919.85,0.00018887,2]
[377950812,1754626247399,-558.83,0.00018887,2]